bitfinex/quotes_BTCUSD_20241206
["timestamp","ask_amount","ask_price","bid_price","bid_amount"]
[1733492570224,0.002,98978.0,98977.0,0.24730953]
[1733492570729,0.002,98978.0,98977.0,0.11927799]
[1733492570731,0.002,98978.0,98977.0,0.11427799]
[1733492570965,0.22889671,98983.0,98982.0,0.0999]
[1733492571190,0.22889671,98983.0,98982.0,0.20493154]
[1733492571433,0.501,98990.0,98982.0,0.20493154]
[1733492571434,0.501,98990.0,98989.0,0.202042]
[1733492571670,0.501,98990.0,98989.0,0.2569425]
[1733492571914,0.501,98990.0,98989.0,0.2799425]
[1733492572181,0.501,98990.0,98989.0,0.3299425]
[1733492572902,0.501,98990.0,98989.0,0.3349425]
[1733492574529,0.501,98990.0,98989.0,0.3379425]
[1733492575664,0.501,98990.0,98989.0,0.3329425]
[1733492575885,0.501,98990.0,98989.0,0.3299425]
[1733492576325,0.501,98990.0,98989.0,0.3309425]
[1733492576533,0.502,98990.0,98989.0,0.3309425]
[1733492576741,0.502,98990.0,98989.0,0.3299425]
[1733492577163,0.503,98990.0,98989.0,0.3299425]
[1733492577613,0.502,98990.0,98989.0,0.3299425]
[1733492577902,0.501,98990.0,98989.0,0.3309425]
[1733492578135,0.505,98990.0,98989.0,0.3309425]
[1733492578409,0.501,98990.0,98989.0,0.3309425]
[1733492578666,0.50505855,98990.0,98989.0,0.3309425]
[1733492579527,0.501,98990.0,98989.0,0.3309425]
[1733492580158,0.501,98990.0,98989.0,0.43597404]
[1733492580373,0.460592,98990.0,98989.0,0.43597404]
[1733492580855,0.359572,98990.0,98989.0,0.48597404]
[1733492581065,0.3604367,98990.0,98989.0,0.48497404]
[1733492581288,0.0018648,99010.0,98991.0,0.1229]
[1733492581518,0.0018648,99010.0,98991.0,0.22793154]
[1733492581743,0.0018648,99010.0,98991.0,0.23288888]
[1733492581985,6.5e-07,98992.0,98991.0,0.28288888]
[1733492582222,6.5e-07,98992.0,98991.0,0.23288888]
[1733492582734,6.5e-07,98992.0,98991.0,0.05495734]
[1733492582977,6.5e-07,98992.0,98989.0,0.212042]
[1733492582978,0.21445112,98992.0,98989.0,0.009]
[1733492583235,0.28119869,98991.0,98979.0,0.05]
[1733492583502,0.202042,98989.0,98977.0,0.252067]
[1733492583749,0.202059,98981.0,98970.0,0.00230643]
[1733492583978,0.0483,98972.0,98970.0,0.00230643]
[1733492584214,0.30711054,98971.0,98970.0,0.00230643]
[1733492584942,0.30711054,98971.0,98945.0,0.202131]
[1733492584943,0.10503154,98971.0,98945.0,0.202131]
[1733492585200,0.10503154,98971.0,98948.0,0.0005777]
[1733492585201,0.11773688,98960.0,98948.0,0.0005777]
[1733492585435,0.202115,98954.0,98948.0,0.0005777]
[1733492585654,0.10503154,98953.0,98948.0,0.0005777]
[1733492586152,0.10909223,98953.0,98948.0,0.0005777]
[1733492586587,0.00406069,98953.0,98949.0,0.202124]
[1733492586807,0.00406069,98952.0,98948.0,0.0015777]
[1733492587018,0.04926069,98951.0,98948.0,0.0005777]
[1733492587257,0.202124,98949.0,98948.0,0.0005777]
[1733492587471,0.202141,98941.0,98926.0,0.252169]
[1733492587682,0.18799223,98949.0,98910.0,0.0017304]
[1733492587683,0.00406069,98940.0,98931.0,0.202159]
[1733492588136,0.20213,98946.0,98929.0,0.202165]
[1733492588355,0.20213,98946.0,98928.0,0.05]
[1733492588356,0.10909223,98945.0,98928.0,0.05]
[1733492588574,0.10909223,98945.0,98929.0,0.202165]
[1733492588575,0.00406069,98944.0,98929.0,0.202165]
[1733492588793,0.00406069,98944.0,98917.0,0.20276696]
[1733492588794,0.00406069,98944.0,98933.0,0.05]
[1733492589009,0.611,98950.0,98942.0,0.05]
[1733492589010,0.00406069,98948.0,98942.0,0.05]
[1733492589237,0.00406069,98949.0,98947.0,0.252128]
[1733492589470,0.611,98950.0,98947.0,0.252128]
[1733492589471,0.611,98950.0,98949.0,0.202124]
[1733492589695,0.611,98950.0,98949.0,0.252124]
[1733492589939,0.1708164,98967.0,98966.0,0.202089]
[1733492590156,0.1708164,98967.0,98960.0,0.2021]
[1733492590157,0.0496,98970.0,98960.0,0.0499]
[1733492590371,0.0496,98970.0,98960.0,0.2021]
[1733492590586,0.0496,98970.0,98967.0,0.404174]
[1733492590831,0.0496,98970.0,98967.0,0.202087]
[1733492591053,0.00401982,98969.0,98967.0,0.202087]
[1733492591287,0.00401982,98968.0,98967.0,0.202087]
[1733492591512,0.00401982,98968.0,98966.0,0.00057796]
[1733492591941,0.0496,98970.0,98966.0,0.00057796]
[1733492591942,0.00401982,98967.0,98966.0,0.00057796]
[1733492592182,0.00401982,98967.0,98966.0,0.05057796]
[1733492592404,0.00401982,98967.0,98966.0,0.07458841]
[1733492592629,0.00643175,98979.0,98977.0,0.0499]
[1733492592630,0.01045157,98979.0,98977.0,0.0499]
[1733492592853,0.01045157,98979.0,98978.0,0.1229]
[1733492593086,0.01045157,98979.0,98978.0,0.22894178]
[1733492593294,0.00643175,98981.0,98980.0,0.1229]
[1733492593547,0.00643175,98981.0,98980.0,0.22894165]
[1733492593902,0.00019233,99002.0,98991.0,0.1229]
[1733492594000,0.00019233,99002.0,98991.0,0.202038]
[1733492594224,0.00019233,99002.0,98989.0,0.202042]
[1733492594438,0.00643232,98998.0,98991.0,0.00455572]
[1733492594651,0.00402085,98992.0,98991.0,0.202038]
[1733492594864,0.00402085,98992.0,98991.0,0.20659372]
[1733492595083,0.00402085,98992.0,98991.0,0.00455572]
[1733492595523,0.00402085,98992.0,98976.0,0.05]
[1733492595739,0.0040202,98991.0,98981.0,0.202058]
[1733492595968,0.0040202,98990.0,98986.0,0.202047]
[1733492596210,0.0040202,98990.0,98981.0,0.202058]
[1733492596452,0.0040202,98989.0,98977.0,0.202065]
[1733492596677,0.0040202,98988.0,98977.0,0.202065]
[1733492596898,0.0040202,98987.0,98977.0,0.202065]
[1733492597134,0.0040202,98987.0,98976.0,0.05]
[1733492597135,0.0040202,98987.0,98986.0,0.001]
[1733492597362,0.00402004,98987.0,98986.0,0.001]
[1733492597591,0.00402004,98987.0,98976.0,0.05]
[1733492597836,0.00300065,98992.0,98984.0,0.202052]
[1733492597837,0.00402004,98986.0,98984.0,0.202052]
[1733492598051,6.5e-07,98992.0,98975.0,0.0499]
[1733492598052,0.00402004,98985.0,98978.0,0.202065]
[1733492598263,0.0461,98983.0,98962.0,0.05]
[1733492598485,0.10905158,98982.0,98967.0,0.202087]
[1733492598694,0.00402004,98981.0,98971.0,0.202078]
[1733492598902,0.10905158,98980.0,98967.0,0.202087]
[1733492599113,0.20608304,98979.0,98965.0,0.202091]
[1733492599324,0.10905158,98978.0,98965.0,0.202091]
[1733492599544,0.00402004,98977.0,98965.0,0.202091]
[1733492599774,0.00402004,98977.0,98967.0,0.202087]
[1733492599775,0.10905158,98977.0,98967.0,0.202087]
[1733492599981,0.00402004,98976.0,98967.0,0.451887]
[1733492600189,0.00402004,98976.0,98967.0,0.452887]
[1733492600420,0.00402004,98975.0,98971.0,0.202078]
[1733492600664,0.00402004,98980.0,98975.0,0.202071]
[1733492600875,0.004,98981.0,98975.0,0.202071]
[1733492600876,0.006,98977.0,98975.0,0.251971]
[1733492601085,0.00402004,98978.0,98975.0,0.251971]
[1733492601295,0.00402004,98982.0,98981.0,0.202058]
[1733492601642,0.0461,98983.0,98981.0,0.202058]
[1733492602065,0.202088,98997.0,98981.0,0.404116]
[1733492602066,0.00643232,98993.0,98981.0,0.404116]
[1733492602274,0.00643232,98996.0,98981.0,0.202058]
[1733492602503,0.04816,98997.0,98976.0,0.252069]
[1733492602504,0.00643232,98995.0,98976.0,0.252069]
[1733492602722,0.46,98984.0,98967.0,0.3009]
[1733492603173,0.10903154,98983.0,98967.0,0.25]
[1733492603389,0.11546386,98983.0,98968.0,0.202085]
[1733492603603,0.202065,98978.0,98967.0,0.25]
[1733492603872,0.202057,98982.0,98967.0,0.25]
[1733492603873,0.10503154,98977.0,98967.0,0.25]
[1733492604296,0.202069,98976.0,98967.0,0.25]
[1733492604509,0.02003864,98978.0,98967.0,0.25]
[1733492604510,0.10503154,98975.0,98967.0,0.25]
[1733492604740,0.10503154,98975.0,98968.0,0.202085]
[1733492604946,0.00643509,98980.0,98967.0,0.25]
[1733492605170,0.10503154,98980.0,98974.0,0.202072]
[1733492605410,0.10503154,98980.0,98970.0,0.202079]
[1733492605623,0.002,98976.0,98970.0,0.202079]
[1733492606036,0.10503154,98980.0,98967.0,0.25]
[1733492606037,0.202063,98979.0,98967.0,0.25]
[1733492606253,0.006,98977.0,98967.0,0.251]
[1733492606468,0.10503154,98977.0,98967.0,0.25]
[1733492606746,0.10503154,98976.0,98967.0,0.25]
[1733492606956,0.11003154,98976.0,98970.0,0.001]
[1733492607132,0.11003154,98976.0,98968.0,0.202084]
[1733492607133,0.10503154,98976.0,98968.0,0.202084]
[1733492607581,0.10503154,98976.0,98967.0,0.25]
[1733492607787,0.10703154,98976.0,98967.0,0.25]
[1733492608009,0.30910154,98976.0,98967.0,0.251]
[1733492608231,0.30910154,98976.0,98968.0,0.202085]
[1733492608232,0.10703154,98976.0,98968.0,0.202085]
[1733492608456,0.10503154,98976.0,98968.0,0.202085]
[1733492608694,0.08075276,98975.0,98967.0,0.251]
[1733492608913,0.480185,98968.0,98967.0,0.1229]
[1733492609124,0.0001,98961.0,98923.0,0.05]
[1733492609383,0.53743054,98961.0,98960.0,0.0023086]
[1733492609607,0.64232546,98961.0,98960.0,0.0023086]
[1733492609817,0.64232546,98961.0,98914.0,0.01174931]
[1733492609818,0.20214,98941.0,98916.0,0.202191]
[1733492610032,0.91817154,98941.0,98940.0,0.00230921]
[1733492610265,0.91817154,98941.0,98910.0,0.0017304]
[1733492610266,0.404396,98913.0,98910.0,0.0017304]
[1733492610474,0.0001,98925.0,98910.0,0.0017304]
[1733492610475,0.229,98912.0,98910.0,0.0017304]
[1733492610896,0.229,98912.0,98910.0,0.00231075]
[1733492611123,0.10503154,98911.0,98910.0,0.00231075]
[1733492611337,0.30723254,98911.0,98910.0,0.00231075]
[1733492611551,0.10503154,98911.0,98910.0,0.00231075]
[1733492612864,0.11003154,98911.0,98910.0,0.00331075]
[1733492613324,0.10503154,98911.0,98910.0,0.00231075]
[1733492613761,0.229,98912.0,98910.0,0.00231075]
[1733492613970,0.003,98911.0,98910.0,0.00231075]
[1733492614620,0.229,98912.0,98910.0,0.00231075]
[1733492615031,0.002,98911.0,98910.0,0.00231075]
[1733492615249,0.002,98911.0,98910.0,0.05231075]
[1733492615464,0.16648021,98923.0,98910.0,0.05231075]
[1733492615465,0.00301276,98923.0,98920.0,0.202183]
[1733492615670,0.202131,98946.0,98925.0,0.202171]
[1733492615671,0.611,98935.0,98925.0,0.202171]
[1733492615875,0.10503154,98934.0,98925.0,0.202171]
[1733492616089,0.202157,98933.0,98913.0,0.404393]
[1733492616297,0.202165,98929.0,98898.0,0.0999]
[1733492616506,0.17651072,98930.0,98905.0,0.0499]
[1733492616507,0.003,98911.0,98905.0,0.0499]
[1733492616727,0.003,98911.0,98906.0,0.202211]
[1733492617014,0.003,98911.0,98902.0,0.202218]
[1733492617432,0.003,98911.0,98908.0,0.202207]
[1733492618056,0.006,98911.0,98906.0,0.20221]
[1733492618267,0.006,98911.0,98907.0,0.0999]
[1733492618475,0.006,98911.0,98910.0,0.10221075]
[1733492618685,0.006,98911.0,98910.0,0.05221075]
[1733492618898,0.006,98911.0,98910.0,0.00231075]
[1733492619369,0.009,98911.0,98910.0,0.00231075]
[1733492619800,0.19145465,98927.0,98911.0,0.202201]
[1733492620008,0.202173,98925.0,98911.0,0.202201]
[1733492620212,0.10503154,98926.0,98910.0,0.00231075]
[1733492620213,0.10503154,98924.0,98910.0,0.00231075]
[1733492620622,0.202177,98923.0,98910.0,0.00231075]
[1733492620827,0.10503154,98922.0,98910.0,0.00231075]
[1733492621033,0.10503154,98922.0,98911.0,0.404402]
[1733492621242,0.10503154,98922.0,98910.0,0.00231075]
[1733492622293,0.001,98911.0,98910.0,0.00231075]
[1733492622503,0.71703154,98911.0,98910.0,0.00231075]
[1733492622720,0.76523154,98911.0,98910.0,0.00231075]
[1733492623158,0.78565538,98911.0,98910.0,0.00231075]
[1733492623802,0.93565538,98911.0,98910.0,0.00231075]
[1733492624013,1.0404503,98911.0,98910.0,0.00231075]
[1733492624218,1.0494503,98911.0,98910.0,0.00231075]
[1733492624428,1.0404503,98911.0,98910.0,0.00231075]
[1733492624696,1.2496513,98911.0,98910.0,0.00331075]
[1733492624910,1.5087513,98911.0,98910.0,0.00331075]
[1733492625119,1.7517513,98911.0,98910.0,0.00231075]
[1733492625583,1.7517513,98911.0,98910.0,0.00331075]
[1733492625584,1.3767513,98911.0,98910.0,0.00331075]
[1733492626063,0.202242,98891.0,98890.0,0.011728]
[1733492626296,0.53627354,98891.0,98890.0,0.01230867]
[1733492626762,2.88948994,98891.0,98890.0,0.01230867]
[1733492626971,1.38948994,98891.0,98890.0,0.01230867]
[1733492627201,1.38948994,98891.0,98834.0,0.0809]
[1733492627202,0.452363,98881.0,98843.0,0.0999]
[1733492627404,0.93678946,98881.0,98880.0,0.00230892]
[1733492627607,0.37953154,98881.0,98880.0,0.00230892]
[1733492627816,0.52963154,98881.0,98880.0,0.00230892]
[1733492628493,0.53563154,98881.0,98880.0,0.00330892]
[1733492629446,0.55579649,98881.0,98880.0,0.00330892]
[1733492629668,1.34026394,98881.0,98880.0,0.00330892]
[1733492629894,1.44515886,98881.0,98880.0,0.00330892]
[1733492631383,1.19016394,98881.0,98880.0,0.00330892]
[1733492631604,1.16999899,98881.0,98880.0,0.00330892]
[1733492631873,1.17009899,98881.0,98880.0,0.00330892]
[1733492632088,1.51491539,98881.0,98880.0,0.00330892]
[1733492632338,0.92193154,98881.0,98880.0,0.00330892]
[1733492632625,1.02682646,98881.0,98880.0,0.00330892]
[1733492632868,1.17682646,98881.0,98880.0,0.00330892]
[1733492634009,2.67682646,98881.0,98880.0,0.00330892]
[1733492634523,2.67682646,98881.0,98860.0,0.0017284]
[1733492634524,0.930883,98871.0,98860.0,0.0017284]
[1733492634771,1.03591454,98871.0,98870.0,0.00231068]
[1733492634987,1.12069396,98871.0,98870.0,0.00231068]
[1733492635208,1.03591454,98871.0,98870.0,0.00231068]
[1733492635435,1.03591454,98871.0,98870.0,1.00231068]
[1733492636356,1.33591454,98871.0,98870.0,1.00231068]
[1733492636576,1.33591454,98871.0,98870.0,0.95171667]
[1733492636577,1.97669839,98871.0,98870.0,0.95171667]
[1733492636952,2.09059331,98871.0,98870.0,0.95171667]
[1733492637137,2.08159331,98871.0,98870.0,0.95171667]
[1733492637330,3.61366565,98871.0,98870.0,0.94618206]
[1733492637571,3.62266565,98871.0,98870.0,0.82821493]
[1733492637830,3.62266565,98871.0,98870.0,0.27964019]
[1733492637831,3.54073367,98871.0,98870.0,0.27964019]
[1733492638096,3.55903367,98871.0,98870.0,0.27964019]
[1733492638325,3.55003367,98871.0,98870.0,1e-08]
[1733492638556,1.002404,98861.0,98860.0,0.0017284]
[1733492638862,1.002404,98861.0,98840.0,0.0017284]
[1733492638863,0.202445,98841.0,98840.0,0.0017284]
[1733492639054,1.45276039,98841.0,98840.0,0.0017284]
[1733492639286,0.452465,98831.0,98799.0,0.20243]
[1733492639516,0.64797854,98831.0,98799.0,0.20243]
[1733492639798,0.64797854,98831.0,98798.0,0.0499]
[1733492640301,0.6485573,98831.0,98797.0,0.202434]
[1733492640528,0.6575573,98831.0,98810.0,0.0515294]
[1733492640790,0.7563737,98831.0,98810.0,0.0017294]
[1733492641043,0.4247917,98831.0,98810.0,0.0017294]
[1733492641276,0.2004267,98831.0,98818.0,0.202391]
[1733492641501,0.2004267,98831.0,98810.0,0.2041374]
[1733492641502,0.20746142,98831.0,98810.0,0.2041374]
[1733492641739,0.84956142,98831.0,98810.0,0.0017294]
[1733492641961,0.59946142,98831.0,98826.0,0.0797]
[1733492642453,0.70320431,98831.0,98826.0,0.0797]
[1733492642699,0.69920431,98831.0,98826.0,0.0797]
[1733492642961,0.69020431,98831.0,98826.0,0.0797]
[1733492643178,0.69020431,98831.0,98825.0,0.0489]
[1733492643179,0.69620431,98831.0,98813.0,0.0817]
[1733492643688,0.69020431,98831.0,98814.0,0.202399]
[1733492643908,0.70420431,98831.0,98813.0,0.0817]
[1733492644130,0.69520431,98831.0,98813.0,0.0817]
[1733492644612,0.59146142,98831.0,98813.0,0.0817]
[1733492644828,0.59546142,98831.0,98813.0,0.0817]
[1733492645038,0.21246142,98831.0,98813.0,0.0817]
[1733492645698,0.21246142,98831.0,98813.0,0.284101]
[1733492645908,0.20346142,98831.0,98813.0,0.284101]
[1733492646371,0.20346142,98831.0,98817.0,0.202393]
[1733492646372,0.21246142,98831.0,98817.0,0.202393]
[1733492646609,0.21246142,98831.0,98822.0,0.202382]
[1733492646868,0.61046142,98831.0,98819.0,0.202389]
[1733492647091,0.61046142,98831.0,98830.0,0.2267292]
[1733492647092,0.33605816,98831.0,98830.0,0.2267292]
[1733492647345,0.2295,98841.0,98840.0,0.0999]
[1733492647570,0.2295,98841.0,98840.0,0.302247]
[1733492648278,0.2295,98841.0,98840.0,0.380447]
[1733492648968,0.2295,98841.0,98840.0,0.0782]
[1733492649442,0.2305,98841.0,98840.0,0.0782]
[1733492649700,0.2295,98841.0,98840.0,0.280547]
[1733492649943,0.2295,98841.0,98840.0,0.0782]
[1733492649944,0.2325,98841.0,98840.0,0.0782]
[1733492650204,0.2325,98841.0,98840.0,0.077158]
[1733492650205,0.485,98841.0,98840.0,0.077158]
[1733492650418,0.58703154,98841.0,98840.0,0.077158]
[1733492650649,0.58703154,98841.0,98840.0,0.127058]
[1733492650650,0.484,98841.0,98840.0,0.127058]
[1733492650876,0.482,98841.0,98840.0,0.127058]
[1733492651374,0.485,98841.0,98840.0,0.077158]
[1733492651599,0.485,98841.0,98834.0,0.202358]
[1733492651911,0.482,98841.0,98836.0,0.202355]
[1733492652154,0.483,98841.0,98836.0,0.202355]
[1733492652391,0.10503154,98840.0,98834.0,0.202358]
[1733492652594,0.10503154,98840.0,98830.0,0.30087396]
[1733492652595,0.10503154,98840.0,98838.0,0.202349]
[1733492652845,0.10503154,98840.0,98833.0,0.0499]
[1733492653080,0.10503154,98840.0,98834.0,0.202358]
[1733492653300,0.10503154,98840.0,98831.0,0.0784]
[1733492653754,0.04800496,98839.0,98831.0,0.0784]
[1733492653968,0.04800496,98839.0,98830.0,0.04850796]
[1733492653969,0.1530365,98839.0,98830.0,0.04850796]
[1733492654185,0.1530365,98839.0,98830.0,0.00230796]
[1733492654186,0.10503154,98838.0,98830.0,0.00230796]
[1733492654396,0.202362,98833.0,98830.0,0.00230796]
[1733492654607,0.10503154,98832.0,98830.0,0.00230796]
[1733492654817,0.30739554,98832.0,98830.0,0.00230796]
[1733492655023,0.30739554,98832.0,98806.0,0.202416]
[1733492655024,0.15,98831.0,98806.0,0.202416]
[1733492655249,0.15,98831.0,98790.0,0.0017298]
[1733492655250,0.10503154,98830.0,98810.0,0.202408]
[1733492655472,0.0329646,98829.0,98813.0,0.202401]
[1733492655709,0.10503154,98828.0,98813.0,0.202401]
[1733492655919,0.30740254,98828.0,98810.0,0.202408]
[1733492656127,0.202381,98824.0,98808.0,0.20241]
[1733492656346,0.10503154,98823.0,98808.0,0.20241]
[1733492656555,0.10503154,98823.0,98810.0,0.202407]
[1733492656759,0.10503154,98823.0,98809.0,0.03316676]
[1733492657198,0.10503154,98823.0,98810.0,0.202408]
[1733492657426,0.10503154,98823.0,98809.0,0.03316676]
[1733492657635,0.10503154,98823.0,98801.0,0.0009279]
[1733492657636,0.002,98823.0,98822.0,0.03316676]
[1733492657844,0.002,98823.0,98822.0,0.23555076]
[1733492658115,0.2525,98823.0,98822.0,0.36595076]
[1733492658555,0.00057876,98832.0,98831.0,0.03316676]
[1733492658768,0.00057876,98832.0,98831.0,0.33383176]
[1733492659846,0.00357876,98832.0,98831.0,0.33383176]
[1733492660275,0.000866,98850.0,98832.0,0.023]
[1733492660505,0.000866,98850.0,98849.0,0.202328]
[1733492660715,0.000866,98850.0,98847.0,0.23549876]
[1733492660921,0.000866,98850.0,98849.0,0.03316676]
[1733492661757,0.10589754,98850.0,98844.0,0.202337]
[1733492661965,0.10589754,98850.0,98836.0,0.03316676]
[1733492661966,0.10503154,98849.0,98838.0,0.202349]
[1733492662201,0.253,98848.0,98836.0,0.202354]
[1733492662413,0.10503154,98847.0,98844.0,0.202338]
[1733492662629,0.253,98848.0,98847.0,0.03316676]
[1733492662837,0.253,98848.0,98847.0,0.202332]
[1733492663046,0.253,98848.0,98847.0,0.23549876]
[1733492664100,0.253,98848.0,98847.0,0.23749876]
[1733492664752,0.253,98848.0,98847.0,0.204332]
[1733492664984,0.253,98848.0,98847.0,0.002]
[1733492665197,0.253,98848.0,98847.0,0.15896676]
[1733492665198,0.23052343,98848.0,98847.0,0.15896676]
[1733492665425,0.0204176,98848.0,98847.0,0.48800991]
[1733492665641,0.00300483,98903.0,98899.0,0.202226]
[1733492665857,0.2945,98900.0,98899.0,0.202226]
[1733492666290,0.2945,98900.0,98899.0,0.23539276]
[1733492666528,0.2945,98900.0,98899.0,0.202226]
[1733492666775,0.39953154,98900.0,98897.0,0.20223]
[1733492667007,0.10503154,98899.0,98889.0,0.03316676]
[1733492667242,0.10503154,98899.0,98891.0,0.202242]
[1733492667458,0.10503154,98899.0,98897.0,0.00014663]
[1733492668498,0.10503154,98899.0,98898.0,0.202228]
[1733492668917,0.10503154,98899.0,98897.0,0.00114663]
[1733492669126,0.2945,98900.0,98897.0,0.40560663]
[1733492669329,0.2945,98900.0,98899.0,0.03316676]
[1733492670850,0.2945,98900.0,98899.0,0.03516676]
[1733492671663,0.2945,98900.0,98899.0,0.03616676]
[1733492675212,0.2935,98900.0,98899.0,0.03616676]
[1733492676052,0.2943662,98900.0,98899.0,0.03616676]
[1733492676472,0.2943662,98900.0,98899.0,0.0412635]
[1733492676687,0.2303662,98900.0,98899.0,0.0412635]
[1733492684498,0.33539774,98900.0,98899.0,0.0412635]
[1733492684709,0.15638436,98900.0,98899.0,0.00809674]
[1733492684921,0.12587956,98900.0,98899.0,0.003]
[1733492685128,0.5672128,98900.0,98899.0,0.003]
[1733492685330,0.3427128,98900.0,98899.0,0.003]
[1733492685538,0.3427128,98900.0,98899.0,0.001]
[1733492685948,0.32587956,98900.0,98899.0,0.001]
[1733492686365,0.58087956,98900.0,98899.0,0.001]
[1733492686573,0.5977128,98900.0,98899.0,0.001]
[1733492686781,0.5927128,98900.0,98899.0,0.001]
[1733492687436,0.202282,98872.0,98852.0,0.202322]
[1733492687643,0.10503154,98871.0,98860.0,0.01917268]
[1733492688076,0.202285,98870.0,98860.0,0.01917268]
[1733492688294,0.10503154,98869.0,98860.0,0.01917268]
[1733492688738,0.3155,98877.0,98873.0,0.404556]
[1733492688952,0.00402109,98876.0,98873.0,0.202277]
[1733492689165,0.42053154,98877.0,98870.0,0.202285]
[1733492689385,0.2235,98877.0,98871.0,0.03316676]
[1733492689611,0.2235,98877.0,98876.0,0.03316676]
[1733492690086,0.009,98877.0,98876.0,0.03316676]
[1733492690736,0.009,98877.0,98875.0,0.23544076]
[1733492690958,0.004,98876.0,98875.0,0.23544076]
[1733492691179,0.10903154,98876.0,98864.0,0.03316676]
[1733492691433,0.10503154,98876.0,98865.0,0.202295]
[1733492691645,0.10503154,98876.0,98871.0,0.001]
[1733492691858,0.10503154,98876.0,98865.0,0.202295]
[1733492692276,0.10503154,98876.0,98861.0,0.23547076]
[1733492692482,0.10503154,98876.0,98875.0,0.003]
[1733492692689,0.10503154,98876.0,98862.0,0.03316676]
[1733492692690,0.10503154,98876.0,98865.0,0.202295]
[1733492692898,0.10503154,98876.0,98869.0,0.202287]
[1733492693123,0.10503154,98876.0,98871.0,0.202283]
[1733492693124,0.11003154,98876.0,98871.0,0.202283]
[1733492693395,0.202275,98875.0,98861.0,0.03316676]
[1733492693620,0.202275,98875.0,98863.0,0.2023]
[1733492693621,0.10503154,98874.0,98863.0,0.2023]
[1733492693981,0.10503154,98874.0,98850.0,0.0017318]
[1733492693982,0.10503154,98869.0,98850.0,0.0017318]
[1733492694180,0.01683324,98871.0,98850.0,0.0017318]
[1733492694181,0.30733554,98861.0,98850.0,0.0017318]
[1733492694395,0.74866878,98861.0,98850.0,0.0017318]
[1733492694677,0.9035637,98861.0,98850.0,0.0017318]
[1733492695171,0.54636478,98861.0,98850.0,0.0017318]
[1733492695401,0.79866878,98861.0,98850.0,0.0017318]
[1733492695633,0.79866878,98861.0,98810.0,0.0795]
[1733492695634,0.01683324,98849.0,98816.0,0.03316676]
[1733492695872,0.25,98852.0,98811.0,0.03316676]
[1733492695873,0.202371,98829.0,98811.0,0.03316676]
[1733492696132,0.202371,98829.0,98825.0,0.03316676]
[1733492696133,0.2295,98829.0,98825.0,0.03316676]
[1733492696354,0.25,98854.0,98817.0,0.03316676]
[1733492696355,0.10503154,98828.0,98817.0,0.03316676]
[1733492696856,0.11553469,98828.0,98818.0,0.202392]
[1733492697075,0.11553469,98828.0,98817.0,0.03316676]
[1733492697076,0.10503154,98828.0,98817.0,0.03316676]
[1733492697308,0.10503154,98828.0,98816.0,0.00057876]
[1733492697531,0.25,98846.0,98825.0,0.202376]
[1733492697532,0.202344,98842.0,98825.0,0.202376]
[1733492697788,0.202347,98840.0,98825.0,0.202376]
[1733492698017,0.10503154,98839.0,98823.0,0.202382]
[1733492698272,0.002,98828.0,98816.0,0.00057876]
[1733492698491,0.30740654,98827.0,98816.0,0.00057876]
[1733492698762,0.10503154,98827.0,98820.0,0.0017316]
[1733492699062,0.41646745,98839.0,98837.0,0.202353]
[1733492699303,0.2235,98838.0,98837.0,0.23551976]
[1733492699527,0.009,98839.0,98838.0,0.03316676]
[1733492700213,0.009,98839.0,98838.0,0.03417841]
[1733492700453,0.009,98839.0,98838.0,0.03316676]
[1733492700971,0.2745,98861.0,98838.0,0.03316676]
[1733492701193,0.55803154,98860.0,98851.0,0.03316676]
[1733492701432,0.55803154,98860.0,98859.0,0.03316676]
[1733492701433,0.453,98860.0,98859.0,0.03316676]
[1733492701723,0.2235,98860.0,98859.0,0.05616676]
[1733492701977,0.2235,98860.0,98859.0,0.03316676]
[1733492702202,0.2235,98860.0,98858.0,0.20231]
[1733492702489,0.2235,98860.0,98858.0,0.20248288]
[1733492702736,0.2235,98860.0,98859.0,0.12803154]
[1733492702980,0.2235,98860.0,98859.0,0.023]
[1733492703716,0.2235,98860.0,98858.0,0.20248288]
[1733492704242,0.2245,98860.0,98859.0,0.004]
[1733492704772,0.2235,98860.0,98858.0,0.20248288]
[1733492705281,0.001,98860.0,98859.0,0.15704298]
[1733492705518,0.2295,98878.0,98877.0,0.202271]
[1733492705749,0.2295,98878.0,98877.0,0.30730254]
[1733492705975,0.2295,98878.0,98877.0,0.33030254]
[1733492706466,0.0018662,98900.0,98899.0,0.202226]
[1733492707419,0.0018662,98900.0,98899.0,0.225226]
[1733492707641,0.0028662,98900.0,98899.0,0.225226]
[1733492707872,2e-07,98900.0,98899.0,0.33043042]
[1733492708126,0.02067389,98941.0,98899.0,0.33043042]
[1733492708127,1e-06,98910.0,98909.0,0.225206]
[1733492708376,1e-06,98910.0,98909.0,0.33023754]
[1733492708642,1e-06,98910.0,98909.0,0.48464007]
[1733492708896,0.0018664,98940.0,98919.0,0.202185]
[1733492709210,4e-07,98920.0,98919.0,0.42901654]
[1733492709336,4e-07,98920.0,98919.0,0.48140752]
[1733492709800,4e-07,98920.0,98919.0,0.40531907]
[1733492710033,4e-07,98920.0,98919.0,0.202185]
[1733492710274,4e-07,98920.0,98909.0,0.009]
[1733492710497,0.0040172,98920.0,98919.0,0.003]
[1733492710732,0.00401669,98920.0,98919.0,0.003]
[1733492710985,4e-07,98920.0,98919.0,0.00101089]
[1733492711221,4e-07,98920.0,98919.0,0.00201089]
[1733492711672,0.0090004,98920.0,98919.0,0.00201089]
[1733492711898,4e-07,98920.0,98919.0,0.05201089]
[1733492712120,4e-07,98920.0,98919.0,0.024]
[1733492712349,0.0010004,98920.0,98919.0,0.033]
[1733492712570,0.0010004,98920.0,98919.0,0.13904224]
[1733492712796,0.0010004,98920.0,98919.0,0.18804219]
[1733492714151,0.0010004,98920.0,98919.0,0.19204219]
[1733492715292,0.0010004,98920.0,98919.0,0.013]
[1733492715526,0.0010004,98920.0,98919.0,0.01401075]
[1733492715789,0.0010004,98920.0,98919.0,0.16803154]
[1733492716022,4e-07,98920.0,98919.0,0.16904229]
[1733492716488,0.001,98930.0,98929.0,0.03316676]
[1733492716712,0.001,98930.0,98929.0,0.13920888]
[1733492716917,0.001,98930.0,98929.0,0.16220888]